Cogmind - Beta 15 @@@ ROGUE MODE // 2025.10.17 @ 21:27:09 // Winter2019/RPGLIKE Player: ExAliquo Result: Destroyed by Meganuke Performance ------------- Evolutions (6) 3000 Regions Visited (19) 3800 Robots Destroyed (576) 2880 Value Destroyed (27478) 27478 Prototype IDs (41) 820 Alien Tech Used (0) 0 Bonus (12725) 12725 TOTAL SCORE: 50703 Bonus ------- Triggered High Security 1000 High Alert Combat Kills 9999 Follower Combat Kills 465 Entered Garrisons 400 Entered DSFs 500 MAIN.C Attacked Warlord 500 Friendly Fire -139 Cogmind --------- Core Integrity 0/1600 Matter 300/300 Energy 715/715 System Corruption 1% Temperature Cool (0) Movement Hovering (107) Location -4/Warlord Parts ------- > --- POWER (4) -------- Scrap-Antimatter Engine > --- PROPULSION (4) --- Hovering Gyrokinetic-Antigrav Exoskeleton > --- UTILITY (6) ------ Armored Scrap Engine Active Sensor Suite Graphene Brace > --- WEAPON (5) ------- Molecular Deconstructor Flak Accelerated Autocannon Con/C Energy Wave Construct/G Hpw. EM Wave Construct/G > --- INVENTORY (4) ---- Protomatter-81 Protomatter-74 Peak State ------------ > --- POWER ------------ Scrap-Antimatter Engine > --- PROPULSION ------- Hovering Gyrokinetic-Antigrav Exoskeleton > --- UTILITY ---------- Armored Scrap Engine Active Sensor Suite Improved Force Field > --- WEAPON ----------- Molecular Deconstructor Flak Accelerated Autocannon Con/C Energy Wave Construct/G Hpw. EM Wave Construct/G > --- INVENTORY -------- Protomatter Protomatter Protomatter Graphene Brace [Rating: 129] Favorites ----------- Power Light Ion Engine Engine Light Ion Engine Propulsion Constructs Leg Aluminum Leg Wheel Compact Wheel Hover Unit Constructs Flight Unit Flight Unit Utility Seismic Detector Device Seismic Detector Processor Salvage Targeting Computer Hackware Makeshift System Shield Weapon Improved Medium Laser Energy Gun Improved Medium Laser Energy Cannon Constructs Ballistic Gun Light Assault Rifle Ballistic Cannon Constructs Special Weapon Molecular Deconstructor Build | -11 -10 -10 -9 -9 -9 -8 -8 -8 -8 -8 -7 -7 -7 -5 -5 -4 -4 -4 -4 ------- Run | Yrd Mat Min Mat Min Exi Min Mat Gar Mat Gar Fac Sto Rec Fac DSF Fac Upp Upp War Slots Evolved 15 | . 2 . 1 . . . 1 . 1 . 1 . . 1 2 5 1 . . Power 3 | . . . . . . . . . . . . . . . 1 2 . . . Propulsion 3 | . . . . . . . . . . . . . . 1 1 1 . . . Utility 5 | . 1 . 1 . . . . . 1 . . . . . . 1 1 . . Weapon 4 | . 1 . . . . . 1 . . . 1 . . . . 1 . . . Parts Attached 64 | 3 6 6 11 1 . . 4 6 5 1 7 4 1 . . 2 2 . 5 Power 7 | . 2 . 3 . . . . 1 1 . . . . . . . . . . Engine 7 | . 2 . 3 . . . . 1 1 . . . . . . . . . . Core . | . . . . . . . . . . . . . . . . . . . . Reactor . | . . . . . . . . . . . . . . . . . . . . Propulsion 10 | 1 1 3 2 . . . 1 . 1 . . 1 . . . . . . . Treads . | . . . . . . . . . . . . . . . . . . . . Leg . | . . . . . . . . . . . . . . . . . . . . Wheel 1 | 1 . . . . . . . . . . . . . . . . . . . Hover . | . . . . . . . . . . . . . . . . . . . . Flight 9 | . 1 3 2 . . . 1 . 1 . . 1 . . . . . . . Utility 20 | 1 1 2 2 1 . . . . 1 1 1 1 1 . . 2 1 . 5 Device 15 | 1 1 2 . 1 . . . . 1 1 . . 1 . . 2 1 . 4 Storage . | . . . . . . . . . . . . . . . . . . . . Processor 4 | . . . 2 . . . . . . . 1 1 . . . . . . . Hackware 1 | . . . . . . . . . . . . . . . . . . . 1 Protection . | . . . . . . . . . . . . . . . . . . . . Artifact . | . . . . . . . . . . . . . . . . . . . . Weapon 27 | 1 2 1 4 . . . 3 5 2 . 6 2 . . . . 1 . . Energy Gun 23 | 1 2 1 3 . . . 3 3 2 . 6 2 . . . . . . . Energy Cannon 1 | . . . 1 . . . . . . . . . . . . . . . . Ballistic Gun 2 | . . . . . . . . 2 . . . . . . . . . . . Ballistic Cannon . | . . . . . . . . . . . . . . . . . . . . Launcher . | . . . . . . . . . . . . . . . . . . . . Special Weapon 1 | . . . . . . . . . . . . . . . . . 1 . . Impact Weapon . | . . . . . . . . . . . . . . . . . . . . Slashing Weapon . | . . . . . . . . . . . . . . . . . . . . Piercing Weapon . | . . . . . . . . . . . . . . . . . . . . Special Melee Weapon . | . . . . . . . . . . . . . . . . . . . . Unidentified Prototypes 14 | . . . 2 1 . . 3 . . . 1 1 1 . . 2 1 . 2 Corrupted Parts 1 | . . . . . . . . . . . . . . . . 1 . . . System Corruption 3 | . . . . . . . . . . . . . . . . 3 . . . Parts Lost 2 | . . 2 . . . . . . . . . . . . . . . . . Power . | . . . . . . . . . . . . . . . . . . . . Propulsion . | . . . . . . . . . . . . . . . . . . . . Utility 1 | . . 1 . . . . . . . . . . . . . . . . . Weapon 1 | . . 1 . . . . . . . . . . . . . . . . . Highest Loss Streak 1 | . . 1 . . . . . . . . . . . . . . . . . To Critical Strikes . | . . . . . . . . . . . . . . . . . . . . Average Backups 1 | . 1 1 2 2 2 2 1 1 . 1 1 1 1 1 1 . 1 1 . Power . | . . . . . . . . . . . . . . . . . . . . Propulsion . | . . . . . . . . . . . . . . . . . . . . Utility . | . . . . . . . . 1 . 1 1 1 1 1 1 . 1 1 . Weapon . | . . . . 2 2 2 . . . . . . . . . . . . . Tool/Special . | . . . . . . . . . . . . . . . . . . . . Unused Backups 8 | . 2 . 1 . . . 2 1 . . . . 1 . . 1 . . . Power . | . . . . . . . . . . . . . . . . . . . . Propulsion 1 | . 1 . . . . . . . . . . . . . . . . . . Utility 3 | . . . . . . . . 1 . . . . 1 . . 1 . . . Weapon 4 | . 1 . 1 . . . 2 . . . . . . . . . . . . Tool/Special . | . . . . . . . . . . . . . . . . . . . . Average Slot Usage (%) 81 | . 93 97 97 100 100 100 96 95 94 88 99 100 61 54 51 53 46 47 46 Engine 9 | . 20 16 15 14 14 14 13 10 11 11 10 10 2 . . . . . 2 Core 1 | . . . . . . . . . . . . . 7 9 7 3 . . . Wheel 1 | . 10 . . . . . . . . . . . . . . . . . . Flight 8 | . 11 16 15 14 14 14 13 12 11 11 10 10 3 . 3 3 . . . Device 25 | . 22 30 31 28 28 28 27 25 31 33 32 30 29 27 24 14 13 15 14 Processor 3 | . . . . 14 14 14 13 12 4 . 10 10 . . . . . . . Energy Gun 24 | . 28 32 31 28 28 28 27 31 35 33 34 40 12 6 1 12 10 10 8 Energy Cannon 1 | . . . . . . . . . . . . . . 2 9 9 . . . Peak Build Rating 129 | 4 8 10 15 21 21 21 27 24 36 38 44 45 58 49 77 118 129 126 129 Average Rating 48 | 3 5 9 11 19 21 21 24 22 30 33 39 44 46 48 58 106 124 126 126 On Entrance 42 | 3 4 8 9 15 21 21 21 18 24 33 33 44 45 48 49 77 118 126 126 Naked Turns . | . . . . . . . . . . . . . . . . . . . . Heaviest Build 55 | 8 13 13 13 13 13 13 15 14 17 17 20 20 18 16 37 51 55 55 53 Greatest Support 93 | 21 21 14 14 14 14 14 20 20 20 20 20 21 36 18 57 93 69 57 57 Greatest Overweight (x) 1 | . 1 1 . . . . . . . . . . . . . . . . . Average Overweight (x) . | . . . . . . . . . . . . . . . . . . . . Largest Inventory Capacity 4 | 2 2 2 3 3 3 3 3 3 3 3 3 3 3 3 3 4 4 4 4 Average Capacity 3 | 1 2 2 2 3 3 3 3 3 3 3 3 3 3 3 3 3 4 4 4 Most Carried 4 | 1 2 2 3 3 3 3 3 3 3 3 3 3 3 3 3 4 4 4 4 Average Carried 2 | . 1 1 2 2 3 3 2 2 2 2 3 2 3 3 3 3 4 4 3 Final Capacity 4 | 2 2 2 3 3 3 3 3 3 3 3 3 3 3 3 3 4 4 4 4 Final Carried 4 | 1 2 2 3 3 3 3 3 3 3 3 3 3 3 3 3 4 4 4 2 Scrap Engine Consumption 138 | . . . . . . . . . . . . . 18 1 43 36 11 8 21 Constructs Created 7 | . . . . . . . . . . . . . 3 . 2 2 . . . Constructs Modified 45 | . . . . . . . . . . . . . 3 1 7 18 4 1 11 Class Distribution -------------------- 26% | Hacker-Construct 20% | Hacker-Gunner 20% | Hacker-Mutant 16% | Mutant 11% | Hacker-Scout 3% | Commander-Construct Dominant Class ---------------- Mutant | -10/Materials Mutant | -10/Mines Hacker-Mutant | -9/Materials Hacker-Mutant | -9/Mines Hacker-Mutant | -9/Exiles Hacker-Mutant | -8/Mines Hacker-Mutant | -8/Materials Hacker-Gunner | -8/Garrison Hacker-Gunner | -8/Materials Hacker-Gunner | -8/Garrison Hacker-Scout | -7/Factory Hacker-Scout | -7/Storage Commander-Construct | -7/Recycling Commander-Construct | -5/Factory Hacker-Construct | -5/DSF Hacker-Construct | -4/Factory Hacker-Construct | -4/Upper Caves Hacker-Construct | -4/Upper Caves Hacker-Construct | -4/Warlord Resources | -11 -10 -10 -9 -9 -9 -8 -8 -8 -8 -8 -7 -7 -7 -5 -5 -4 -4 -4 -4 ----------- Run | Yrd Mat Min Mat Min Exi Min Mat Gar Mat Gar Fac Sto Rec Fac DSF Fac Upp Upp War Matter Collected 2064 | 230 70 97 150 10 . . 70 86 70 31 80 60 18 . 13 328 231 107 413 Remotely . | . . . . . . . . . . . . . . . . . . . . Salvage Created 25693 | 97 1848 795 2019 109 . 203 1972 824 1767 2190 2166 2347 728 . 476 3815 1534 569 2234 Parts 1264 | 3 77 38 107 12 . 17 90 55 114 71 100 113 28 . 28 221 67 22 101 Haulers Intercepted 22 | . 2 . 5 . . . 3 . 3 . 2 5 . . 1 1 . . . Recyclers Shooed 8 | . 2 . . . . . 1 . . . . . 3 . . 2 . . . Parts Field Recycled . | . . . . . . . . . . . . . . . . . . . . Retrieved Matter . | . . . . . . . . . . . . . . . . . . . . Parts Self-Destructed 55 | . . . . . . . . . . . . . . . . . 46 9 . Prevented 25 | . . . . . . . . . . . . . . . . . 13 12 . Kills | -11 -10 -10 -9 -9 -9 -8 -8 -8 -8 -8 -7 -7 -7 -5 -5 -4 -4 -4 -4 ------- Run | Yrd Mat Min Mat Min Exi Min Mat Gar Mat Gar Fac Sto Rec Fac DSF Fac Upp Upp War Combat Hostiles Destroyed 503 | . 31 32 43 6 . 5 30 30 40 51 49 53 7 . 11 59 22 9 25 Guns 393 | . 28 27 42 6 . 5 27 27 38 45 46 47 6 . . 24 9 4 12 Cannons 46 | . . . . . . . . . . . . . . . 11 13 9 4 9 AOE 22 | . 1 4 . . . . . . . . . 1 . . . 8 4 1 3 Classes Destroyed 29 | 2 6 2 1 . . 1 . 4 1 2 1 . 3 . 1 2 1 . 2 Worker 13 | . 3 . . . . . 2 . 2 . 2 1 . . . 3 . . . Builder 11 | . . 1 . . . 1 2 . 2 . . . . . . 5 . . . Tunneler 2 | 1 . 1 . . . . . . . . . . . . . . . . . Hauler 22 | . 2 . 5 . . . 3 . 3 . 2 5 . . 1 1 . . . Recycler 14 | 1 3 . 2 . . 1 2 . 1 . . . 3 . . 1 . . . Mechanic 3 | . . . . . . . . . . . 2 1 . . . . . . . Operator 3 | . 1 . . . . . . . . . . . . . . 2 . . . Watcher 21 | . 3 . 4 . . . 3 1 5 1 . 2 . . . 2 . . . Swarmer 69 | . 3 . 11 2 . 4 4 11 9 6 4 3 . . 4 . 6 2 . Cutter 3 | . . . . . . . . . . . . . . . 3 . . . . Saboteur 1 | . . . . . . . . . . . . . . . . 1 . . . Grunt 221 | . 28 12 22 3 . . 18 8 19 28 24 22 . . 2 29 4 2 . Brawler 17 | . . . . . . . . . . 2 4 6 . . . 2 3 . . Duelist 18 | . . . . . . . . . . 4 1 4 1 . . 4 2 2 . Protector 4 | . . . . . . . . 1 . . 1 1 . . . 1 . . . Sentry 54 | . . . 10 . . . 5 7 9 3 4 9 3 . . 1 2 1 . Demolisher 2 | . . . . . . . . 1 . . 1 . . . . . . . . Specialist 6 | . . . . . . . . 1 . . . 2 . . 1 . 2 . . Hunter 27 | . . . . . . 1 3 . 2 1 7 2 . . . 7 2 2 . Programmer 29 | . . . . . . . . 1 . 8 3 4 . . 1 11 1 . . Heavy 3 | . . . . . . . . . 1 . . . . . . 2 . . . Behemoth 1 | . . . . . . . . . . . . . . . . 1 . . . Scientist 2 | . . . . . . . . . . . . . 2 . . . . . . Scrapper 3 | . . . . . . . . . . . . . 3 . . . . . . Zionite 1 | . . . . . . . . . . . . . 1 . . . . . . Packrat 1 | . . . . . . . . . . . . . . . . . 1 . . Samaritan 1 | . . . . . . . . . . . . . . . . . 1 . . Assembled 21 | . . 20 . 1 . . . . . . . . . . . . . . . Surgeon 2 | . . . . . . . . . . . . . . . . . . . 2 Thug 9 | . . . . . . . . . . . . . . . . . . . 9 Butcher 3 | . . . . . . . . . . . . . . . . . . . 3 Bouncer 2 | . . . . . . . . . . . . . . . . . . . 2 Mutant 5 | . . . . . . . . . . . . . . . . . . . 5 Sapper 3 | . . . . . . . . . . . . . . . . . . . 3 Commander 1 | . . . . . . . . . . . . . . . . . . . 1 Knight 2 | . . . . . . . . . . . . . . . . . . . 2 Best Kill Streak 15 | 2 4 10 11 2 . 4 9 4 7 9 11 15 5 . 4 9 9 6 6 Combat Bots Only 15 | . 4 10 11 2 . 4 5 4 5 9 8 15 3 . 4 8 9 6 6 Max Kills in Single Turn 6 | 2 1 2 2 1 . 2 1 1 2 2 2 2 2 . 1 6 2 1 2 Gunslinging 1 | . . . 1 . . 1 . . . 1 1 1 1 . . . . . . Exploded 2 | . 1 1 . . . . . . . . . 1 . . . 2 2 1 2 Melee . | . . . . . . . . . . . . . . . . . . . . Uniques/NPCs Destroyed 1 | . . . . . . . . . . . . . . . . . . . 1 EX-DEC (-4/Warlord) Combat | -11 -10 -10 -9 -9 -9 -8 -8 -8 -8 -8 -7 -7 -7 -5 -5 -4 -4 -4 -4 -------- Run | Yrd Mat Min Mat Min Exi Min Mat Gar Mat Gar Fac Sto Rec Fac DSF Fac Upp Upp War Hostile Shots Fired 2103 | . 107 77 109 4 . 10 147 97 98 146 273 283 66 . 28 353 83 50 172 Missed 954 | . 34 32 51 1 . 3 69 37 50 69 144 149 28 . 8 151 33 21 74 Hits 1149 | . 73 45 58 3 . 7 78 60 48 77 129 134 38 . 20 202 50 29 98 Melee 20 | . . 6 . 2 . . 6 . . . 1 . . . 4 . . . 1 Projectile 1129 | . 73 39 58 1 . 7 72 60 48 77 128 134 38 . 16 202 50 29 97 AOE 13 | . . . . . . . . 4 . . 1 1 . . 1 . . . 6 Critical Strikes 49 | . . 1 1 . . . 5 3 . 4 4 5 . . . 9 2 2 13 Actively Blocked 23 | . . . . . . . . . . 4 4 5 . . . . . . 10 Part Disruptions 2 | . . 1 . . . . . . . . . . . . . . . . 1 Damage Taken 16588 | . 868 741 548 44 . 79 930 725 560 1061 1219 1270 286 . 359 3348 624 471 3455 Core 13475 | . 738 621 451 37 . 65 775 600 466 866 1008 1055 239 . 291 2638 485 374 2766 Absorbed by Shields 336 | . . . . . . . . 20 . . . . . . 24 . 142 . 150 Redirected to Core 10551 | . 412 423 287 23 . 49 508 407 311 631 702 704 149 . 229 2462 431 331 2492 Ignored by Resistances 3489 | . . . 112 2 . 8 216 133 156 221 344 341 88 . 47 636 188 133 864 Regen/Repaired (Parts) 907 | . 34 . . . . . 29 . . . . . 3 . 20 272 111 74 364 Core Remaining (%) 95 | 100 . 83 . . . 100 . . . 96 . . 99 . 94 . . . . Volleys Fired 1387 | 8 153 58 101 17 . 10 106 87 109 129 127 106 29 . 32 134 51 27 103 Largest 5 | 1 2 2 2 2 . 2 3 3 3 3 4 4 4 . 1 5 3 3 4 Hottest 348 | 50 90 90 112 112 . 112 182 186 194 194 276 276 262 . 91 348 188 188 211 Shots Fired 3470 | 8 176 108 201 34 . 20 210 223 323 374 401 399 50 . 32 449 117 79 266 Gun 3081 | 8 176 108 201 34 . 20 210 223 323 374 401 399 50 . . 273 82 53 146 Cannon 364 | . . . . . . . . . . . . . . . 32 176 31 26 99 Launcher . | . . . . . . . . . . . . . . . . . . . . Special 25 | . . . . . . . . . . . . . . . . . 4 . 21 Kinetic 263 | . . . . . . . . 16 . . . . . . . 79 31 26 111 Thermal 2523 | 8 91 . 201 34 . 20 210 207 323 374 401 399 50 . 32 31 25 27 90 Explosive . | . . . . . . . . . . . . . . . . . . . . Electromagnetic 645 | . 85 108 . . . . . . . . . . . . . 339 57 26 30 Entropic 14 | . . . . . . . . . . . . . . . . . . . 14 Robot Hit Streak 55 | 4 35 19 34 9 . 12 33 27 33 40 24 36 22 . 49 33 17 22 55 Robot Miss Streak 4 | 1 3 2 2 2 . . 2 2 4 1 4 2 1 . 1 3 2 2 3 Penetration Max 2 | . . . . . . . . . . . . . . . . 2 . . . Secondary Targets 72 | . . 3 3 . . 2 5 4 7 13 10 19 1 . . 4 1 . . Max Gunslinging Chain 2 | . . 1 1 . . 1 1 1 1 1 1 2 1 . . 1 1 . . Shots Hit Robots 2438 | 7 148 96 173 10 . 11 161 129 203 233 257 281 41 . 32 332 80 60 184 Core Hits 1133 | 2 81 86 73 8 . 8 65 44 77 89 127 121 20 . 23 168 40 21 80 Critical Kills 1 | . . . . . . . . . . . . . . . . 1 . . . Critical Parts Destroyed . | . . . . . . . . . . . . . . . . . . . . Critical Strikes 149 | 1 7 . 20 1 . 1 17 10 11 21 28 24 2 . . 6 . . . Burn 143 | 1 7 . 20 1 . 1 17 10 11 21 28 24 2 . . . . . . Meltdown 1 | . . . . . . . . . . . . . . . . 1 . . . Corrupt 5 | . . . . . . . . . . . . . . . . 5 . . . Melee Attacks . | . . . . . . . . . . . . . . . . . . . . Impact . | . . . . . . . . . . . . . . . . . . . . Slashing . | . . . . . . . . . . . . . . . . . . . . Piercing . | . . . . . . . . . . . . . . . . . . . . Sneak Attacks . | . . . . . . . . . . . . . . . . . . . . Combat Hostiles . | . . . . . . . . . . . . . . . . . . . . Follow-up Attacks . | . . . . . . . . . . . . . . . . . . . . Damage Inflicted 62704 | 88 2190 1556 2757 192 . 209 3711 2401 4388 5611 6931 7542 1050 . 970 11525 2897 1787 6899 Guns 46991 | 88 2097 1329 2757 192 . 209 3689 2401 4357 5390 6715 7304 1050 . . 4799 1115 730 2769 Cannons 11130 | . . . . . . . . . . . . . . . 970 4605 1194 875 3486 Explosions 4583 | . 93 227 . . . . 22 . 31 221 216 238 . . . 2121 588 182 644 Melee . | . . . . . . . . . . . . . . . . . . . . Ramming . | . . . . . . . . . . . . . . . . . . . . Kinetic 7902 | . . . . . . . . 79 . . . . . . . 2239 1194 875 3515 Thermal 43203 | 88 1088 227 2757 192 . 209 3689 2322 4357 5390 6715 7304 1050 . 970 3025 919 593 2308 Explosive 1223 | . . . . . . . . . 31 221 . 238 . . . 545 . . 188 Electromagnetic 9855 | . 1102 1329 . . . . 22 . . . 216 . . . . 5716 784 319 367 Impact . | . . . . . . . . . . . . . . . . . . . . Slashing . | . . . . . . . . . . . . . . . . . . . . Piercing . | . . . . . . . . . . . . . . . . . . . . Entropic 521 | . . . . . . . . . . . . . . . . . . . 521 Highest Corruption 16 | . . 4 . . . . . . . 3 . 3 3 . 4 16 16 16 16 Average Corruption 6 | . . 4 . . . . . . . 2 . 2 3 . 2 10 16 16 1 Corruption Purged . | . . . . . . . . . . . . . . . . . . . . Corruption Blocked . | . . . . . . . . . . . . . . . . . . . . Effects 159 | . . 23 . . . . . . . 14 . 10 8 . 4 44 32 20 4 Message Errors 35 | . . 6 . . . . . . . 2 . 3 2 . . 9 5 7 1 Matter Fused 36 | . . 4 . . . . . . . 3 . . 2 . 1 12 10 3 1 Heat Flow Errors 19 | . . 3 . . . . . . . 2 . 1 1 . . 6 3 3 . Energy Discharges 20 | . . 3 . . . . . . . . . 3 2 . 2 3 3 2 2 Parts Rejected 1 | . . . . . . . . . . . . 1 . . . . . . . Parts Fused 2 | . . . . . . . . . . 1 . . . . 1 . . . . Data Loss (minor) 10 | . . 2 . . . . . . . 3 . . . . . 1 3 1 . Data Loss (major) 9 | . . 1 . . . . . . . . . . 1 . . 4 1 2 . Misfires 4 | . . 3 . . . . . . . 1 . . . . . . . . . Alerts 2 | . . . . . . . . . . . . . . . . . 2 . . Misdirections 1 | . . . . . . . . . . . . . . . . . 1 . . Weapon Failures 20 | . . 1 . . . . . . . 2 . 2 . . . 9 4 2 . Overload Shots . | . . . . . . . . . . . . . . . . . . . . Overflow Damage 534 | . . . . . . . . . . . . . . . 7 266 81 25 155 Projectiles 215 | . . . . . . . . . . . . . . . 7 71 38 25 74 Explosions 319 | . . . . . . . . . . . . . . . . 195 43 . 81 Melee . | . . . . . . . . . . . . . . . . . . . . Knockbacks 51 | . . . . . . . . . . . . . . . . 4 6 5 36 Impact . | . . . . . . . . . . . . . . . . . . . . Kinetic 48 | . . . . . . . . . . . . . . . . 4 6 5 33 Secondary 3 | . . . . . . . . . . . . . . . . . . . 3 Self-Inflicted Damage 318 | . 27 36 . . . . . . 57 60 . . . . . 82 . . 56 Shots 6 | . 1 1 . . . . . . 1 1 . . . . . 1 . . 1 Rammed . | . . . . . . . . . . . . . . . . . . . . Targets Rammed . | . . . . . . . . . . . . . . . . . . . . Kicked . | . . . . . . . . . . . . . . . . . . . . Crushed . | . . . . . . . . . . . . . . . . . . . . Highest Temperature 339 | . 8 215 34 11 . 9 216 178 137 328 339 140 144 . 6 195 274 153 278 Average Temperature 49 | . 3 57 10 4 . 3 49 47 39 45 89 65 55 . 6 28 123 71 118 Received Heat Transfer 4488 | . 435 220 228 6 . . 504 270 225 477 450 504 156 . 21 523 70 60 339 Effects 3 | . . . . . . . . . . . 3 . . . . . . . . Interference 3 | . . . . . . . . . . . 3 . . . . . . . . Siege Activations . | . . . . . . . . . . . . . . . . . . . . Martial Activations . | . . . . . . . . . . . . . . . . . . . . Shielding Activations . | . . . . . . . . . . . . . . . . . . . . Robots Disrupted 17 | . . 1 . . . . . . . . . . . . . 11 2 1 2 Combat Hostiles 17 | . . 1 . . . . . . . . . . . . . 11 2 1 2 Robots Corrupted 18 | . 1 1 . . . . . . . . . . . . . 16 . . . Combat Hostiles 15 | . 1 1 . . . . . . . . . . . . . 13 . . . Parts Fried 68 | . 5 2 . . . . . . . . . . . . . 55 3 . 3 Impact Corruptions . | . . . . . . . . . . . . . . . . . . . . Robots Melted 30 | 1 2 . 1 . . . 3 3 2 6 3 6 1 . 1 1 . . . Combat Hostiles 26 | . 1 . 1 . . . 3 3 2 6 3 5 1 . . 1 . . . Parts Melted 193 | 1 9 1 15 2 . 2 18 11 23 31 28 39 6 . 2 2 . . 3 Heat Transferred 73236 | 333 3591 350 7943 481 . 518 7363 5015 8399 10145 11017 10955 1919 . 2109 948 350 150 1650 Parts Sabotaged . | . . . . . . . . . . . . . . . . . . . . Parts Stolen . | . . . . . . . . . . . . . . . . . . . . Parts Stripped . | . . . . . . . . . . . . . . . . . . . . Power Chain Reactions 22 | . 3 4 . . . . . . . . . . . . . 6 3 2 4 Alert | -11 -10 -10 -9 -9 -9 -8 -8 -8 -8 -8 -7 -7 -7 -5 -5 -4 -4 -4 -4 ------- Run | Yrd Mat Min Mat Min Exi Min Mat Gar Mat Gar Fac Sto Rec Fac DSF Fac Upp Upp War Maximum Alert Level 5 | . 2 1 3 1 . . 2 4 4 5 5 5 3 2 2 5 . . . Low Security (%) 18 | 100 39 95 7 . . 100 49 . . . . . . . . 2 . . . Level 1 19 | . 40 4 34 100 . . 46 13 . . . . . 17 31 30 . . . Level 2 20 | . 20 . 55 . . . 4 32 2 . . 20 87 82 68 12 . . . Level 3 14 | . . . 3 . . . . 21 71 18 . 42 12 . . 15 . . . Level 4 12 | . . . . . . . . 33 26 24 32 24 . . . 14 . . . Level 5 10 | . . . . . . . . . . 57 29 12 . . . 16 . . . High Security 3 | . . . . . . . . . . . 37 . . . . 7 . . . Max Security . | . . . . . . . . . . . . . . . . . . . . Sterilizations 1 | . . . . . . . . . . . . . . . 1 . . . . Peak Influence 2889 | 10 492 256 708 361 . 120 435 1395 1286 2889 2491 1858 739 439 520 2282 . . . Initial 1516 | . . 188 97 266 . . 21 218 679 831 1516 1132 718 437 279 273 . . . Average 784 | 2 255 79 448 304 . 60 204 818 983 1800 1761 1079 598 419 420 979 . . . Influence Increases 17068 | 10 1010 365 1315 225 . 175 1112 1177 1660 2058 1681 1928 242 252 351 2689 540 278 . Destroy 0b10 Robot/C 9420 | . 620 240 860 120 . 100 600 580 880 1160 1000 1140 80 . 260 1160 440 180 . Destroy 0b10 Robot/NC 470 | 10 60 10 55 . . 10 60 10 70 5 35 50 15 . 5 75 . . . Destroy Leader 1650 | . 150 30 228 10 . 20 162 20 246 40 154 274 . . 40 246 10 20 . Allied During Kill 332 | . . . . 5 . . . 16 32 114 . 114 2 . 31 . . 18 . Successful Hack 221 | . 33 . 20 . . . 24 30 5 18 5 42 22 2 . 20 . . . Select Force Hacks 510 | . 60 . 60 . . . 90 . 60 . 60 60 120 . . . . . . Disable Machine 900 | . . 30 . 90 . 45 60 15 240 15 105 105 . . . 195 . . . Anti-Garrison Action 950 | . . . . . . . . 400 . 550 . . . . . . . . . Destroy Structure 685 | . 12 25 2 . . . 11 46 97 126 22 83 3 . . 258 . . . Advance Influence 250 | . . . . . . . . . . . . . . 250 . . . . . Partial Spotted 120 | . 15 . 30 . . . 15 . 30 15 15 . . . . . . . . Lose Combat Pursuer 960 | . 60 30 60 . . . 90 60 . 15 285 60 . . 15 135 90 60 . Active Sensor Use 600 | . . . . . . . . . . . . . . . . 600 . . . Influence Decreases 17068 | 10 526 599 881 616 293 120 831 118 1776 448 2079 2577 1636 301 230 927 1163 522 1415 Entered New Map 9536 | . . 296 153 418 293 . 34 118 716 448 1373 1359 1124 261 120 247 845 316 1415 Time Decay 4459 | 10 526 283 428 198 . 120 364 . 410 . 286 398 342 40 . 530 318 206 . Lost Part 20 | . . 20 . . . . . . . . . . . . . . . . . Lost Ally 520 | . . . . . . . . . 50 . 120 220 20 . 110 . . . . Purge Threat 2533 | . . . 300 . . . 433 . 600 . 300 600 150 . . 150 . . . Squads Dispatched 100 | . 10 3 6 . . . 6 . 8 . 21 15 . . 2 29 . . . Investigation 36 | . 7 . 6 . . . 4 . 5 . 2 5 . . . 7 . . . Extermination 9 | . . . . . . . . . . . 1 3 . . . 5 . . . Reinforcement 16 | . 3 . . . . . 2 . 1 . 2 2 . . 2 4 . . . Assault 30 | . . 3 . . . . . . . . 15 5 . . . 7 . . . Garrison 9 | . . . . . . . . . 2 . 1 . . . . 6 . . . Intercept . | . . . . . . . . . . . . . . . . . . . . Searches Triggered . | . . . . . . . . . . . . . . . . . . . . Construction Impeded 4 | . . . . . . . 1 . . . . 1 . . . 2 . . . Haulers Reinforced 2 | . . . . . . . . . . . 1 1 . . . . . . . Active Scanning Responses 6 | . . . . . . . . . . . . . . . . 6 . . . Cargo Convoy Interrupts . | . . . . . . . . . . . . . . . . . . . . Stealth | -11 -10 -10 -9 -9 -9 -8 -8 -8 -8 -8 -7 -7 -7 -5 -5 -4 -4 -4 -4 --------- Run | Yrd Mat Min Mat Min Exi Min Mat Gar Mat Gar Fac Sto Rec Fac DSF Fac Upp Upp War Distress Signals 23 | . 5 . 4 . . . 2 . 1 . 4 3 . . . . . . 4 Communications Jammed . | . . . . . . . . . . . . . . . . . . . . Distress Signals . | . . . . . . . . . . . . . . . . . . . . Times Spotted 689 | . 45 48 54 6 . 5 46 33 49 56 100 63 6 . 12 79 25 13 49 Peak Tracking Total 17 | . 5 14 6 2 . 4 4 4 5 6 17 12 3 . 3 6 9 5 11 Tactical Retreats 41 | . 3 4 3 . . . 5 1 . 1 8 3 . . 1 5 3 2 2 Traps | -11 -10 -10 -9 -9 -9 -8 -8 -8 -8 -8 -7 -7 -7 -5 -5 -4 -4 -4 -4 ------- Run | Yrd Mat Min Mat Min Exi Min Mat Gar Mat Gar Fac Sto Rec Fac DSF Fac Upp Upp War Traps Triggered 26 | . 2 . 2 . . . . 6 2 9 . . . . . . 2 . 3 Indirectly . | . . . . . . . . . . . . . . . . . . . . Trap Hack Attempts . | . . . . . . . . . . . . . . . . . . . . Triggered . | . . . . . . . . . . . . . . . . . . . . Disarmed 3 | . . . . . . . 3 . . . . . . . . . . . . Reprogrammed . | . . . . . . . . . . . . . . . . . . . . Reused . | . . . . . . . . . . . . . . . . . . . . Traps Extracted . | . . . . . . . . . . . . . . . . . . . . Installed . | . . . . . . . . . . . . . . . . . . . . Triggered . | . . . . . . . . . . . . . . . . . . . . Time Bombs Activated 1 | . . . . . . . . . . . . . . . . . . . 1 Exploded 1 | . . . . . . . . . . . . . . . . . . . 1 Machines | -11 -10 -10 -9 -9 -9 -8 -8 -8 -8 -8 -7 -7 -7 -5 -5 -4 -4 -4 -4 ---------- Run | Yrd Mat Min Mat Min Exi Min Mat Gar Mat Gar Fac Sto Rec Fac DSF Fac Upp Upp War Machines Disabled 83 | . . 2 . 6 . 3 4 9 16 11 7 7 . . . 13 1 . 4 Max in Single Turn 3 | . . 2 . 1 . 1 2 2 1 2 3 2 . . . 2 1 . 1 Garrison Access 3 | . . . . . . . . . . . 3 . . . . . . . . Garrison Relay 15 | . . . . . . . . 6 . 9 . . . . . . . . . Phase Generator 1 | . . . . . . . . 1 . . . . . . . . . . . Machines Repaired . | . . . . . . . . . . . . . . . . . . . . Machines Dismantled . | . . . . . . . . . . . . . . . . . . . . Machines Sabotaged . | . . . . . . . . . . . . . . . . . . . . Overloaded Fab Kills . | . . . . . . . . . . . . . . . . . . . . Hacking | -11 -10 -10 -9 -9 -9 -8 -8 -8 -8 -8 -7 -7 -7 -5 -5 -4 -4 -4 -4 --------- Run | Yrd Mat Min Mat Min Exi Min Mat Gar Mat Gar Fac Sto Rec Fac DSF Fac Upp Upp War Machines Accessed 103 | . 8 . 14 . 3 . 15 4 13 2 9 11 11 2 . 6 2 1 2 Terminals 64 | . 5 . 10 . . . 10 4 9 2 3 9 5 2 . 4 . 1 . Fabricators . | . . . . . . . . . . . . . . . . . . . . Repair Stations 6 | . 1 . 2 . . . 1 . . . 1 . . . . 1 . . . Recycling Units 14 | . 2 . 2 . . . 2 . 1 . 1 2 4 . . . . . . Scanalyzers 4 | . . . . . . . 1 . 2 . 1 . . . . . . . . Garrison Access 6 | . . . . . . . 1 . 1 . 3 . . . . 1 . . . Total Hacks 339 | . 27 . 39 . 3 . 61 8 56 8 24 30 51 3 . 17 8 1 3 Successful 232 | . 11 . 20 . 3 . 47 6 42 4 18 19 38 2 . 10 8 1 3 Failed 105 | . 16 . 19 . . . 13 2 13 4 6 11 13 1 . 7 . . . Catastrophic 13 | . 3 . 2 . . . . 1 1 . . 3 2 . . 1 . . . Database Lockouts 2 | . . . . . . . 1 . 1 . . . . . . . . . . Manual 173 | . 8 . 22 . . . 38 3 38 5 17 20 15 . . 6 1 . . Terminals 249 | . 21 . 34 . . . 51 8 47 8 15 27 21 3 . 13 . 1 . Fabricators . | . . . . . . . . . . . . . . . . . . . . Repair Stations 11 | . 3 . 2 . . . 3 . . . 1 . . . . 2 . . . Recycling Units 18 | . 3 . 3 . . . 3 . 1 . 1 3 4 . . . . . . Scanalyzers 13 | . . . . . . . 3 . 7 . 3 . . . . . . . . Garrison Access 8 | . . . . . . . 1 . 1 . 4 . . . . 2 . . . Terminal Hacks 147 | . 7 . 10 . 3 . 28 6 20 3 6 14 31 2 . 5 8 1 3 Record 39 | . . . . . 3 . 1 . . . . 1 24 . . . 7 1 2 Robot Analysis 5 | . 2 . . . . . . . . . . 1 2 . . . . . . Prototype ID Bank 13 | . 1 . . . . . 6 . 4 . . 2 . . . . . . . Open Door 5 | . . . . . . . . 1 . . . 2 . . . . 1 . 1 Open DSF 1 | . . . . . . . . . . . . . . 1 . . . . . Level Access Points 1 | . . . . . . . 1 . . . . . . . . . . . . Branch Access Points 7 | . 1 . 1 . . . . . 1 . 1 1 . 1 . 1 . . . Emergency Access Points 3 | . . . . . . . 1 1 . 1 . . . . . . . . . Machine Index 1 | . . . . . . . . . 1 . . . . . . . . . . Terminal Index 2 | . . . . . . . . . 1 . . 1 . . . . . . . Recycling Unit Index 2 | . . . . . . . 1 . 1 . . . . . . . . . . Unreport Threat 19 | . . . 2 . . . 4 . 4 . 3 4 1 . . 1 . . . Locate Traps 16 | . 2 . 4 . . . 5 . 3 . . . . . . 2 . . . Disarm Traps 1 | . . . . . . . 1 . . . . . . . . . . . . Dispatch Records 2 | . . . . . . . . . 1 1 . . . . . . . . . Maintenance Status 1 | . . . . . . . 1 . . . . . . . . . . . . Security Status 3 | . . . . . . . 1 1 1 . . . . . . . . . . Surveillance Status 1 | . . . . . . . 1 . . . . . . . . . . . . Patrol Status 1 | . . . . . . . 1 . . . . . . . . . . . . Hauler Manifests 6 | . . . 1 . . . 1 . 1 . 1 1 . . . 1 . . . Registered Components 3 | . . . . . . . 1 . 1 . . 1 . . . . . . . Registered Prototypes 2 | . 1 . . . . . 1 . . . . . . . . . . . . Zone Layout 8 | . . . 2 . . . 1 1 1 . 1 . 2 . . . . . . Garrison Registry 2 | . . . . . . . . 1 . 1 . . . . . . . . . Security Stations 1 | . . . . . . . . 1 . . . . . . . . . . . Release Object 2 | . . . . . . . . . . . . . 2 . . . . . . Fabricator Hacks . | . . . . . . . . . . . . . . . . . . . . Repair Station Hacks 7 | . 2 . 1 . . . 2 . . . . . . . . 2 . . . Scan Component 3 | . 1 . . . . . 1 . . . . . . . . 1 . . . Repair 3 | . 1 . . . . . 1 . . . . . . . . 1 . . . Refit 1 | . . . 1 . . . . . . . . . . . . . . . . Recycling Unit Hacks 1 | . . . 1 . . . . . . . . . . . . . . . . Report Inventory 1 | . . . 1 . . . . . . . . . . . . . . . . Scanalyzer 8 | . . . . . . . 2 . 6 . . . . . . . . . . Insert Component 2 | . . . . . . . 1 . 1 . . . . . . . . . . Analyze 6 | . . . . . . . 1 . 5 . . . . . . . . . . Garrison Access Hacks 5 | . . . . . . . 1 . 1 . 3 . . . . . . . . Unlock Access 2 | . . . . . . . 1 . 1 . . . . . . . . . . Seal Access 3 | . . . . . . . . . . . 3 . . . . . . . . Unauthorized Hacks 64 | . 2 . 8 . . . 14 . 15 1 9 5 7 . . 3 . . . Terminals 44 | . . . 5 . . . 10 . 13 1 6 3 3 . . 3 . . . Track 1 | . . . . . . . 1 . . . . . . . . . . . . Assimilate 5 | . . . . . . . 2 . 2 . 1 . . . . . . . . Botnet 20 | . . . 3 . . . 3 . 4 . 2 3 3 . . 2 . . . Disrupt 3 | . . . 1 . . . 1 . . . . . . . . 1 . . . Operators 2 | . . . . . . . . . 1 . 1 . . . . . . . . Skim 13 | . . . 1 . . . 3 . 6 1 2 . . . . . . . . Fabricators . | . . . . . . . . . . . . . . . . . . . . Repair Stations 3 | . . . 1 . . . 1 . . . 1 . . . . . . . . Mechanics 3 | . . . 1 . . . 1 . . . 1 . . . . . . . . Recycling Units 14 | . 2 . 2 . . . 2 . 1 . 1 2 4 . . . . . . Tunnel 14 | . 2 . 2 . . . 2 . 1 . 1 2 4 . . . . . . Scanalyzers 3 | . . . . . . . 1 . 1 . 1 . . . . . . . . Extract 3 | . . . . . . . 1 . 1 . 1 . . . . . . . . Garrison Access . | . . . . . . . . . . . . . . . . . . . . Data Cores Recovered 1 | . . . . . . . . . . . . . . . . 1 . . . Used . | . . . . . . . . . . . . . . . . . . . . Hacking Detections 65 | . 7 . 10 . . . 11 4 9 2 3 7 5 2 . 5 . . . Full Trace Events 16 | . 5 . 3 . . . 1 1 1 . . 3 1 . . 1 . . . Feedback Events 1 | . . . . . . . . . . . . 1 . . . . . . . Corruption 1 | . . . . . . . . . . . . 1 . . . . . . . Feedback Blocked . | . . . . . . . . . . . . . . . . . . . . Robot Schematics Acquired . | . . . . . . . . . . . . . . . . . . . . Robots Built . | . . . . . . . . . . . . . . . . . . . . Authchips . | . . . . . . . . . . . . . . . . . . . . Time . | . . . . . . . . . . . . . . . . . . . . Total Robot Build Rating . | . . . . . . . . . . . . . . . . . . . . Part Schematics Acquired 15 | . . . . . . . 7 . 5 . 3 . . . . . . . . Parts Built . | . . . . . . . . . . . . . . . . . . . . Authchips . | . . . . . . . . . . . . . . . . . . . . Time . | . . . . . . . . . . . . . . . . . . . . Total Part Build Rating . | . . . . . . . . . . . . . . . . . . . . Parts Repaired 3 | . 1 . . . . . 1 . . . . . . . . 1 . . . Time 113 | . 26 . . . . . 25 . . . . . . . . 62 . . . Parts Recycled . | . . . . . . . . . . . . . . . . . . . . Recycled Matter . | . . . . . . . . . . . . . . . . . . . . Retrieved Matter . | . . . . . . . . . . . . . . . . . . . . Retrieved Components . | . . . . . . . . . . . . . . . . . . . . Parts Scanalyzed 2 | . . . . . . . 1 . 1 . . . . . . . . . . Part Schematics Acquired 1 | . . . . . . . 1 . . . . . . . . . . . . Parts Damaged . | . . . . . . . . . . . . . . . . . . . . Bothacking | -11 -10 -10 -9 -9 -9 -8 -8 -8 -8 -8 -7 -7 -7 -5 -5 -4 -4 -4 -4 ------------ Run | Yrd Mat Min Mat Min Exi Min Mat Gar Mat Gar Fac Sto Rec Fac DSF Fac Upp Upp War Used RIF Installer . | . . . . . . . . . . . . . . . . . . . . Robots Hacked . | . . . . . . . . . . . . . . . . . . . . Non-combat . | . . . . . . . . . . . . . . . . . . . . Combat . | . . . . . . . . . . . . . . . . . . . . Robot Hacks Applied . | . . . . . . . . . . . . . . . . . . . . Relay Couplers Released 23 | . . . . . . . . 14 . 9 . . . . . . . . . Machine Destruction 21 | . . . . . . . . 12 . 9 . . . . . . . . . Programmers 2 | . . . . . . . . 2 . . . . . . . . . . . Fabnet Peak Effective % . | . . . . . . . . . . . . . . . . . . . . Robots Rewired 20 | . . . . . . . . . . 7 . . 11 . . . 2 . . Allies Hacked 1 | . . . . . . . . . . 1 . . . . . . . . . Hacks Repelled . | . . . . . . . . . . . . . . . . . . . . Allies | -11 -10 -10 -9 -9 -9 -8 -8 -8 -8 -8 -7 -7 -7 -5 -5 -4 -4 -4 -4 -------- Run | Yrd Mat Min Mat Min Exi Min Mat Gar Mat Gar Fac Sto Rec Fac DSF Fac Upp Upp War Total Allies 39 | . . . . 1 . . 1 2 2 7 1 12 11 . . . 2 . . Largest Group 11 | . . . . 1 1 . 1 2 2 7 6 10 11 9 9 . 2 2 2 Highest-Rated Group 206 | . . . . 31 31 . 26 70 70 125 103 173 206 190 190 . 60 60 60 Highest-Rated Ally 40 | . . . . 31 31 . 26 39 39 26 26 31 40 40 40 . 30 30 30 Initial Warlord ECA Mod 231 | . . . . . . . . . 9 9 21 21 21 19 19 28 28 28 28 Total Orders 21 | . . . . . . . 7 . . 14 . . . . . . . . . STAY 12 | . . . . . . . 3 . . 9 . . . . . . . . . ROAM 1 | . . . . . . . 1 . . . . . . . . . . . . FOLLOW 8 | . . . . . . . 3 . . 5 . . . . . . . . . Ally Attacks 176 | . . . . 5 . . . . 26 26 16 85 . . 18 . . . . Total Damage 2912 | . . . . 43 . . . . 351 597 221 1015 . . 685 . . . . Kills 23 | . . . . 1 . . . . 5 7 2 5 . . 3 . . . . Allies Corrupted 1 | . . . . . . . . . . . . 1 . . . . . . . Allies Melted . | . . . . . . . . . . . . . . . . . . . . Intel | -11 -10 -10 -9 -9 -9 -8 -8 -8 -8 -8 -7 -7 -7 -5 -5 -4 -4 -4 -4 ------- Run | Yrd Mat Min Mat Min Exi Min Mat Gar Mat Gar Fac Sto Rec Fac DSF Fac Upp Upp War Active Infowar (turns) 15357 | 10 1564 983 1053 403 182 274 847 809 985 1266 1016 950 774 97 368 1615 719 430 1012 Sensors 8180 | . . . . 301 182 274 847 809 984 1266 921 950 774 97 368 407 . . . A.S.S. 3369 | . . . . . . . . . . . . . . . . 1208 719 430 1012 Terrain 1946 | . . 792 1053 101 . . . . . . . . . . . . . . . Structural 360 | . 141 219 . . . . . . . . . . . . . . . . . Seismic 10212 | 10 1564 809 1053 403 182 274 847 809 985 1266 1016 950 44 . . . . . . T.N.C. 1 | . . . 1 . . . . . . . . . . . . . . . . Robot Analysis Total 5 | . 2 . . . . . . . . . . 1 2 . . . . . . Derelict Logs Recovered 4 | . . 1 . 1 . . . . . . . . . . . . 1 1 . Drone Launches . | . . . . . . . . . . . . . . . . . . . . Drone Recoveries . | . . . . . . . . . . . . . . . . . . . . Exploration | -11 -10 -10 -9 -9 -9 -8 -8 -8 -8 -8 -7 -7 -7 -5 -5 -4 -4 -4 -4 ------------- Run | Yrd Mat Min Mat Min Exi Min Mat Gar Mat Gar Fac Sto Rec Fac DSF Fac Upp Upp War Turns Passed 15392 | 42 1564 983 1053 403 182 274 847 809 985 1266 1016 950 774 97 368 1618 719 430 1012 Spaces Moved 15980 | 18 1087 979 1386 529 456 488 795 1000 1281 1287 1246 1052 746 152 305 1101 782 510 780 Core 1087 | . 2 . . . . . . . . 310 . . 466 152 157 . . . . Treads 126 | . . . . . . . . . . . . . . . . 126 . . . Legs 45 | 3 . . . . . . . . . . . . 42 . . . . . . Wheels 336 | 15 321 . . . . . . . . . . . . . . . . . . Hover 2313 | . . . . . . . . . . . . . . . . 241 782 510 780 Flight 12073 | . 764 979 1386 529 456 488 795 1000 1281 977 1246 1052 238 . 148 734 . . . Fastest Speed 35 | 100 40 40 40 40 40 40 40 40 35 35 35 35 35 50 50 58 62 62 62 Average Speed 49 | 103 91 40 40 40 40 40 40 40 35 38 35 35 50 50 67 79 62 62 74 Slowest Speed 154 | 120 120 120 40 40 40 40 40 40 40 50 35 35 150 50 86 154 62 62 116 Overloaded Moves . | . . . . . . . . . . . . . . . . . . . . Propulsion Burnouts . | . . . . . . . . . . . . . . . . . . . . Robots Hopped 101 | . 2 18 22 8 . 9 7 . 6 1 10 6 7 . . 5 . . . Potential Cave-ins 15 | . . . . . . . . . . . . . . . . . . . 15 Cave-ins Triggered 1 | . . . . . . . . . . . . . . . . . . . 1 Exploration Rate (%) 74 | 3 97 102 96 98 90 97 62 97 87 98 31 92 73 3 97 28 85 87 76 Regions Visited 19 Branch Regions 9 Pre-discovered Areas 17 | . 2 . 2 . . . 2 . 2 . 1 3 4 . . . 1 . . Known Exits Taken 10 | . 1 . 1 . . . 1 . 1 . 1 1 . 1 . 1 1 1 . Unknown Exits Taken 6 | 1 . 1 . 1 1 1 . . . . . . 1 . . . . . . Scrap Searched 6 | . . 1 . 1 . 1 . . . . . . . . . . 2 1 . Spaces Dug 21 | . . . . . . . . . . . 5 8 . . . 1 . . 7 Terrain Destroyed 572 | . 11 25 . . . . 6 51 90 20 13 86 2 . . 147 23 30 68 Melee . | . . . . . . . . . . . . . . . . . . . . Projectile 169 | . . . . . . . 6 . 12 . 13 72 2 . . 29 3 4 28 AOE 401 | . 11 25 . . . . . 51 78 20 . 14 . . . 118 20 26 38 Terrain Rammed . | . . . . . . . . . . . . . . . . . . . . Walls Destroyed . | . . . . . . . . . . . . . . . . . . . . Machines Disabled . | . . . . . . . . . . . . . . . . . . . . Actions | -11 -10 -10 -9 -9 -9 -8 -8 -8 -8 -8 -7 -7 -7 -5 -5 -4 -4 -4 -4 --------- Run | Yrd Mat Min Mat Min Exi Min Mat Gar Mat Gar Fac Sto Rec Fac DSF Fac Upp Upp War Total 20639 | 32 1483 1447 1667 678 455 537 1111 1238 1571 1772 1525 1372 1101 172 438 1563 915 565 997 Wait 2265 | 2 198 384 143 125 . 44 150 60 136 124 108 121 276 21 88 176 49 10 50 Move 15767 | 17 1082 942 1343 512 455 471 782 999 1268 1284 1226 1039 732 151 304 1091 781 509 779 Hop 93 | . 2 18 20 8 . 7 6 . 6 1 9 6 6 . . 4 . . . Pick Up 34 | . 2 5 3 1 . . 6 2 2 . . 2 1 . . 7 . . 3 Fast Attach 54 | 3 7 4 5 1 . . 6 6 2 . 5 5 1 . . 2 2 . 5 Attach 6 | . . . 1 . . . 1 . 1 1 . . . . . 1 . . 1 Detach 13 | 1 1 . 2 . . . 2 . 2 1 . 1 1 . . . 2 . . Swap 21 | . . 3 9 . . . 1 . 4 . 3 1 . . . . . . . Drop 93 | 1 5 9 16 2 . . 9 5 7 . 6 6 9 . . 8 . . 10 Fire 1387 | 8 153 58 101 17 . 10 106 87 109 129 127 106 29 . 32 134 51 27 103 Melee . | . . . . . . . . . . . . . . . . . . . . Ram . | . . . . . . . . . . . . . . . . . . . . Kick . | . . . . . . . . . . . . . . . . . . . . Crush . | . . . . . . . . . . . . . . . . . . . . Escape Stasis 177 | . . . . . . . . 32 . 144 . . . . . . . . 1 Rewire 74 | . . 1 . . . . . . . 28 . . 34 . . 4 6 1 . Trap 1 | . . . . . . . . . . . . . . . . . . . 1 Miscellaneous 654 | . 33 23 24 12 . 5 42 47 34 60 41 85 12 . 14 136 24 18 44 Route ------- -11/Scrapyard -10/Materials (discovered 5 exits: *Mat x3 / *Min / [*Sub]) -10/Mines (discovered 2 exits: *Mat x2) -9/Materials (discovered 5 exits: *Mat x3 / *Min x2) -9/Mines (discovered 3 exits: *Mat x2 / *Exi) -9/Exiles (discovered 2 exits: [*Min x2]) -8/Mines (discovered 2 exits: *Mat x2) -8/Materials (discovered 4 exits: *Fac x3 / Gar) -8/Garrison (discovered 3 exits: *Mat x3) -8/Materials (discovered 4 exits: *Fac x3 / Gar) -8/Garrison (discovered 4 exits: *Fac x3 / [*Mat]) -7/Factory (discovered 6 exits: *Fac x3 / *Sto / Low x2) -7/Storage (discovered 2 exits: *Fac / *Rec) -7/Recycling -5/Factory (discovered 3 exits: Upp x2 / DSF) -5/DSF -4/Factory (discovered 3 exits: *Res / *Upp x2) -4/Upper Caves -4/Upper Caves (discovered 2 exits: *Res / *War) -4/Warlord (discovered 1 exit: [*Pro]) History --------- Turn | Location | Event 1 | -11/Scrapyard | Discovered new exit (range 3) 43 | -11/Scrapyard | Entered Materials 207 | -10/Materials | Discovered new exit (range 17) 207 | -10/Materials | Discovered new exit (range 12) 301 | -10/Materials | Build established: Mutant 307 | -10/Materials | Discovered new exit (range 18) 501 | -10/Materials | Identified exit to Mines 568 | -10/Materials | Reached level 2 697 | -10/Materials | Repaired Ion Engine 709 | -10/Materials | Discovered new exit (range 11) 928 | -10/Materials | Reached level 3 931 | -10/Materials | Upgraded with Utility slot (x1) 931 | -10/Materials | Upgraded with Weapon slot (x1) 1013 | -10/Materials | Discovered new exit (range 9) 1607 | -10/Materials | Entered Mines 1609 | -10/Mines | Reached level 4 1614 | -10/Mines | Discovered new exit (range 4) 1615 | -10/Mines | Met a Derelict testing a Signal Generator 1617 | -10/Mines | Found Signal Generator 1630 | -10/Mines | Assembled infested the area 1748 | -10/Mines | Destroyed 10 combat bots 1879 | -10/Mines | Discovered new exit (range 7) 1961 | -10/Mines | Received a Rocket Launcher from a helpful Derelict 2571 | -10/Mines | Reached level 5 2590 | -10/Mines | Entered Materials 2591 | -9/Materials | Identified exit to Mines 2592 | -9/Materials | Reached level 6 2697 | -9/Materials | Reached level 7 2718 | -9/Materials | Destroyed 11 combat bots 2891 | -9/Materials | Discovered new exit (range 11) 2905 | -9/Materials | Build established: Hacker-Mutant 3038 | -9/Materials | Discovered new exit (range 18) 3080 | -9/Materials | Reached level 8 3188 | -9/Materials | Discovered new exit (range 14) 3418 | -9/Materials | Reached level 9 3421 | -9/Materials | Upgraded with Utility slot (x1) 3643 | -9/Materials | Entered Mines 3652 | -9/Mines | Discovered new exit (range 9) 3694 | -9/Mines | Excavation squad dispatched 3694 | -9/Mines | A large section of the Mines collapsed 3710 | -9/Mines | Received a Mining Laser from a helpful Derelict 3733 | -9/Mines | Learned Materials terminal intel 3741 | -9/Mines | Found a damaged Exp. Sensor Array with a note attached 3745 | -9/Mines | Found Prototype Device 3745 | -9/Mines | Identified Exp. Sensor Array 3898 | -9/Mines | Discovered new exit (range 9) 3986 | -9/Mines | Deemed a non-threat by the Exiles lab entrance 3986 | -9/Mines | Discovered new exit (range 5) 4046 | -9/Mines | Entered Exiles 4046 | -9/Exiles | Found Exiles lab abandoned 4046 | -9/Exiles | Accompanied by 1 ally 4052 | -9/Exiles | Discovered new exit (range 16) 4222 | -9/Exiles | Discovered new exit (range 15) 4228 | -9/Exiles | Entered Mines 4230 | -8/Mines | Reached level 10 4260 | -8/Mines | Discovered new exit (range 3) 4437 | -8/Mines | Discovered new exit (range 6) 4502 | -8/Mines | Entered Materials 4503 | -8/Materials | Loaded intel: 12 terminal locations 4504 | -8/Materials | Reached level 11 4585 | -8/Materials | Reached level 12 4958 | -8/Materials | Discovered new exit (range 13) 4961 | -8/Materials | Central database locked down 5038 | -8/Materials | Repaired Imp. Medium Laser 5125 | -8/Materials | Identified exit to Factory 5126 | -8/Materials | Reached level 13 5129 | -8/Materials | Upgraded with Weapon slot (x1) 5349 | -8/Materials | Identified exit to Garrison 5349 | -8/Materials | Entered Garrison 5357 | -8/Garrison | Triggered checkpoint 5366 | -8/Garrison | Garrison Relay disabled 5389 | -8/Garrison | Triggered checkpoint 5495 | -8/Garrison | Triggered checkpoint 5533 | -8/Garrison | Garrison Relay disabled 5543 | -8/Garrison | Discovered new exit (range 11) 5576 | -8/Garrison | Triggered checkpoint 5645 | -8/Garrison | Discovered new exit (range 8) 5651 | -8/Garrison | Triggered checkpoint 5718 | -8/Garrison | Garrison Relay disabled 5744 | -8/Garrison | Triggered checkpoint 5775 | -8/Garrison | Build established: Hacker-Gunner 5831 | -8/Garrison | Triggered checkpoint 5836 | -8/Garrison | Garrison Relay disabled 5836 | -8/Garrison | Reached level 14 5873 | -8/Garrison | Phase Generator disabled 5882 | -8/Garrison | Discovered new exit (range 3) 5887 | -8/Garrison | Rescued a captive Derelict 5888 | -8/Garrison | Rescued a captive Derelict 5903 | -8/Garrison | Discovered new exit (range 76) 5903 | -8/Garrison | Discovered new exit (range 80) 5903 | -8/Garrison | Discovered new exit (range 8) 5918 | -8/Garrison | Triggered checkpoint 5966 | -8/Garrison | Garrison Relay disabled 6111 | -8/Garrison | Learned Materials security intel 6129 | -8/Garrison | Garrison Relay disabled 6158 | -8/Garrison | Entered Materials 6158 | -8/Materials | Accompanied by 2 allies 6163 | -8/Materials | Identified exit to Garrison 6290 | -8/Materials | Discovered exit to Factory (range 15) 6449 | -8/Materials | Discovered exit to Factory (range 7) 6601 | -8/Materials | Central database locked down 6662 | -8/Materials | Discovered exit to Factory (range 5) 6685 | -8/Materials | Reached level 15 6688 | -8/Materials | Upgraded with Utility slot (x1) 6845 | -8/Materials | Learned location of 3 exits from Factory 6890 | -8/Materials | Learned 2 Storage zone layouts 6925 | -8/Materials | Learned Storage trap positions 6952 | -8/Materials | Learned Factory trap positions 6974 | -8/Materials | Learned 12 Factory zone layouts 6975 | -8/Materials | Learned Factory non-interactive machine intel 6976 | -8/Materials | Garrison activated, responded to threat 6981 | -8/Materials | Learned 4 Lower Caves zone layouts 7143 | -8/Materials | Entered Garrison 7143 | -8/Garrison | Accompanied by 1 ally 7225 | -8/Garrison | Triggered checkpoint 7263 | -8/Garrison | Garrison Relay disabled 7355 | -8/Garrison | Triggered checkpoint 7438 | -8/Garrison | Triggered checkpoint 7453 | -8/Garrison | Destroyed 9 combat bots 7566 | -8/Garrison | Discovered exit to Factory (range 10) 7645 | -8/Garrison | Triggered checkpoint 7649 | -8/Garrison | Garrison Relay disabled 7690 | -8/Garrison | P-60 Hacker assimilated allied Rogue 3c 7814 | -8/Garrison | Garrison Relay disabled 7827 | -8/Garrison | Garrison Relay disabled 7831 | -8/Garrison | Garrison Relay disabled 7834 | -8/Garrison | Garrison Relay disabled 7855 | -8/Garrison | Garrison Relay disabled 7893 | -8/Garrison | Triggered checkpoint 7913 | -8/Garrison | Triggered checkpoint 7923 | -8/Garrison | Triggered checkpoint 7940 | -8/Garrison | Reached level 16 7961 | -8/Garrison | Destroyed 7 combat bots 8048 | -8/Garrison | Discovered exit to Factory (range 15) 8068 | -8/Garrison | Triggered checkpoint 8129 | -8/Garrison | Garrison Relay disabled 8212 | -8/Garrison | Triggered checkpoint 8246 | -8/Garrison | Garrison Relay disabled 8255 | -8/Garrison | Discovered exit to Factory (range 26) 8255 | -8/Garrison | Discovered exit to Factory (range 30) 8255 | -8/Garrison | Discovered exit to Factory (range 56) 8255 | -8/Garrison | Discovered new exit (range 25) 8269 | -8/Garrison | Triggered checkpoint 8409 | -8/Garrison | Entered Factory 8409 | -7/Factory | Accompanied by 6 allies 8410 | -7/Factory | Identified exit to Factory 8410 | -7/Factory | Identified exit to Lower Caves 8412 | -7/Factory | Loaded intel: 91 trap records 8413 | -7/Factory | Loaded intel: 262 non-interactive machine locations 8459 | -7/Factory | Identified exit to Storage 8637 | -7/Factory | Garrison activated, responded to threat 8727 | -7/Factory | Build established: Hacker-Scout 8800 | -7/Factory | Reached level 17 8809 | -7/Factory | First assault squad dispatched 8857 | -7/Factory | Destroyed 7 combat bots 9042 | -7/Factory | High security lockdown imminent 9112 | -7/Factory | Discovered exit to Factory (range 17) 9122 | -7/Factory | High security lockdown engaged 9272 | -7/Factory | Upgraded with Weapon slot (x1) 9422 | -7/Factory | Destroyed 8 combat bots 9425 | -7/Factory | Entered Storage 9426 | -7/Storage | Identified exit to Recycling 9427 | -7/Storage | Reached level 18 9428 | -7/Storage | Loaded intel: 30 trap records 9741 | -7/Storage | Assisted by bots powering up and referring to "LRC-V3" 9778 | -7/Storage | Used back door to open Recycling access 9825 | -7/Storage | First assault squad dispatched 9907 | -7/Storage | Lost 7 allies 9944 | -7/Storage | Destroyed 15 combat bots 10210 | -7/Storage | Met a pair of Derelict thieves 10338 | -7/Storage | Destroyed 15 combat bots 10375 | -7/Storage | Entered Recycling 10376 | -7/Recycling | Met a Zionite searching for Scraptown 10377 | -7/Recycling | Reached level 19 10389 | -7/Recycling | Scanned before Scraplab entrance 10402 | -7/Recycling | Entered Scraplab 10407 | -7/Recycling | Discovered new exit (range 3) 10415 | -7/Recycling | Angered Scraplab inhabitants 10420 | -7/Recycling | Found Prototype Device 10420 | -7/Recycling | Identified Scrap Engine 10964 | -7/Recycling | Discovered new exit (range 18) 11049 | -7/Recycling | Build established: Commander-Construct 11149 | -7/Recycling | Entered Factory 11149 | -5/Factory | Accompanied by 9 allies 11151 | -5/Factory | Reached level 20 11152 | -5/Factory | Upgraded with Propulsion slot (x1) 11159 | -5/Factory | Identified exit to DSF 11167 | -5/Factory | Identified exit to Upper Caves 11246 | -5/Factory | Entered DSF 11246 | -5/DSF | Accompanied by 9 allies 11287 | -5/DSF | Additional patrols routed to DSF 11298 | -5/DSF | Discovered new exit (range 18) 11341 | -5/DSF | Lost 6 allies 11360 | -5/DSF | Reached level 21 11413 | -5/DSF | Upgraded with Power slot (x1) 11413 | -5/DSF | Upgraded with Propulsion slot (x1) 11485 | -5/DSF | Sterilization system engaged 11505 | -5/DSF | Ambient heat levels rising (+10) 11520 | -5/DSF | Ambient heat levels rising (+10) 11535 | -5/DSF | Ambient heat levels rising (+10) 11550 | -5/DSF | Ambient heat levels rising (+10) 11562 | -5/DSF | Build established: Hacker-Construct 11565 | -5/DSF | Ambient heat levels rising (+10) 11580 | -5/DSF | Ambient heat levels rising (+10) 11595 | -5/DSF | Ambient heat levels rising (+10) 11610 | -5/DSF | Ambient heat levels rising (+10) 11614 | -5/DSF | Entered Factory 11616 | -4/Factory | Reached level 22 11694 | -4/Factory | Upgraded with Power slot (x1) 11830 | -4/Factory | Spotted B-86 Titan 11842 | -4/Factory | Destroyed B-86 Titan 11970 | -4/Factory | Garrison activated, responded to threat 11997 | -4/Factory | Reached level 23 12000 | -4/Factory | Upgraded with Utility slot (x1) 12024 | -4/Factory | Found Corrupted Prototype Device 12024 | -4/Factory | Identified Active Sensor Suite 12252 | -4/Factory | Discovered new exit (range 9) 12264 | -4/Factory | Identified exit to Research 12364 | -4/Factory | First assault squad dispatched 12377 | -4/Factory | Garrison activated, responded to threat 12387 | -4/Factory | Reached level 24 12422 | -4/Factory | Upgraded with Power slot (x1) 12422 | -4/Factory | Upgraded with Propulsion slot (x1) 12600 | -4/Factory | System corruption reached 10% 12842 | -4/Factory | Reached level 25 12845 | -4/Factory | Upgraded with Weapon slot (x1) 12943 | -4/Factory | Identified exit to Upper Caves 13058 | -4/Factory | Repaired Graphene Brace 13106 | -4/Factory | High security lockdown imminent 13128 | -4/Factory | Destroyed 8 combat bots 13186 | -4/Factory | High security lockdown engaged 13232 | -4/Factory | Entered Upper Caves 13268 | -4/Upper Caves | Encountered a Warlord checkpoint 13290 | -4/Upper Caves | Acquired the password to a Derelict Tinkerer's latest research 13303 | -4/Upper Caves | Found Prototype Special Weapon 13303 | -4/Upper Caves | Identified Molecular Deconstructor 13367 | -4/Upper Caves | Caught by Unaware searching for contraband prototypes 13408 | -4/Upper Caves | Learned Research terminal intel 13437 | -4/Upper Caves | Learned Armory trap positions 13437 | -4/Upper Caves | Learned Extension terminal intel 13437 | -4/Upper Caves | Learned Armory garrison access intel 13496 | -4/Upper Caves | Reached level 26 13499 | -4/Upper Caves | Upgraded with Utility slot (x1) 13679 | -4/Upper Caves | Attracted the attention of an 0b10 outpost 13747 | -4/Upper Caves | Destroyed 9 combat bots 13823 | -4/Upper Caves | Discovered new exit (range 13) 13829 | -4/Upper Caves | Identified exit to Upper Caves 13951 | -4/Upper Caves | Entered another Upper Caves area 13951 | -4/Upper Caves | Accompanied by 2 allies 13997 | -4/Upper Caves | Discovered exit to Research (range 14) 14027 | -4/Upper Caves | Attracted the attention of an 0b10 checkpoint 14273 | -4/Upper Caves | Discovered new exit (range 18) 14336 | -4/Upper Caves | Identified exit to Warlord 14381 | -4/Upper Caves | Entered Warlord 14381 | -4/Warlord | Accompanied by 2 allies 14415 | -4/Warlord | System corruption cleaned by Quarantine Array 14418 | -4/Warlord | Attacked by Warlord forces 14437 | -4/Warlord | Discovered new exit (range 14) 14609 | -4/Warlord | Warlord's base attacked by MAIN.C 14637 | -4/Warlord | Crushed by falling debris 14638 | -4/Warlord | Spotted 5E-50F(g) 14660 | -4/Warlord | Destroyed 5E-50F(g) 14844 | -4/Warlord | Spotted CU-J3R(B) 14959 | -4/Warlord | Warlord forces counterattacked 15015 | -4/Warlord | Destroyed EX-DEC 15021 | -4/Warlord | Found Meganuke 15098 | -4/Warlord | Core integrity fell below 50% 15245 | -4/Warlord | Spotted BZ-3V2(K) 15245 | -4/Warlord | Spotted 9H-2BL(K) 15284 | -4/Warlord | Warlord base infiltrated, sounded retreat 15328 | -4/Warlord | Destroyed BZ-3V2(K) 15338 | -4/Warlord | Destroyed 9H-2BL(K) 15365 | -4/Warlord | Found Prototype Device 15365 | -4/Warlord | Identified Exp. Focal Shield 15391 | -4/Warlord | Spotted Striker 15391 | -4/Warlord | Spotted Executioner 15393 | -4/Warlord | Triggered Meganuke 15393 | -4/Warlord | Destroyed by Meganuke Last Messages --------------- 15342_ Acquired 34 matter. 15346_ Arm. Scrap Engine consumes Prototype Flight Unit. 15349_ Arm. Scrap Engine consumes Prototype Leg. 15351_ Arm. Scrap Engine consumes Prototype Hover Unit. 15363_ Dropped Graphene Brace. 15365_ Acquired Prototype Device. 15365_ Identified Exp. Focal Shield. 15367_ Acquired 10 matter. 15368_ Dropped Exp. Focal Shield. 15372_ Acquired Prototype Device. 15372_ Identified Adv. Remote Shield. 15374_ Dropped Adv. Remote Shield. 15376_ Acquired Graphene Brace. 15378_ Acquired 20 matter. 15382_ Scrap Engine modifies Hovering Gyrokinetic-Antigrav Exoskeleton: Max Integrity -289, Time/Move -9, Burnout +20. 15392_ Penetrated by Slug. 15392_ Dropped Meganuke. 15393_ Triggered Meganuke. [Achievement: Torch] Map ----- +----------------------------------------------------+ | ????????"""" # [= ==#?? ?# ????????????? | | ?????? """""" # % = ]*#? ??# ?????????????? | | ?????? " "" " "% *=# ???#??????????????? | | ?????# #% "###### # ???????????????????? | | ?????##########% %#?????# #????????????????????? | | ??????????????#% #?????# #????????????????????? | | ??????????????#//+#?????# #????????????????????? | | ????????????? ????# #????????????????????? | | ????????????" ???# ###????????????????????? | | ???????????#" ??# "## ??????????????????? | | ???????????#" #?#/" ##????????????????? | | ???????????#" "##?# ###??????????????? | | ???????????#" "#?## #??????????????? | | ???????????#" "#?# #??????????????? | | ???????????#" "#?# # #??????????????? | | ???????????#" "#?# ## #??????????????? | | ???????????#" "#?# #??????????????? | | ???????????#" " "#?? [ #??????????????? | | ????????????""""""" "???# !=# ###????????????? | | ????????????#########??## m%# /&/#????????????? | | ???????????????????????# l%gg# /&/#????????????? | | ???????????????###?????# [%*! #????????????? | | ????????######## #?????# K=%[s #????????????? | | ????????# ! #X ####### ![bh "##????????????? | | ????????# " # #### ##% %h ###### ###???? | | ????????# %" @ E= s %=!%! ? | | ????????# %" # % ==* ? | | ????????# !! # ##### #######"#????? | | ????????######## ######???#######;###????????????? | | ???????????????###???????????????????????????????? | | ?????????????????????????????????????????????????? | | ?????????????????????????????????????????????????? | | ?????????????????????????????????????????????????? | | | | | | | | | | | | | | | | | | | | | | | | | | | | | | | | | | | +----------------------------------------------------+ Best States ------------- Heat Dissipation 109 Energy Generation 64 Energy Capacity 715 Matter Stores 300 Matter Capacity 300 Sight Range 18 Robot Scan Range 22 Terrain Scan Range 16 Terrain Scan Density 110 Resistance: KI 20 Resistance: TH 20 Resistance: EX 10 Evasion (%) 63 Core Analysis 6 Recoil Reduction 3 Salvage Targeting 1 Offensive Hacking 25 Defensive Hacking 10 Item Schematics ----------------- Adv. Beam Rifle | -8/Materials | Scanalyzed Sensor Array | -8/Materials | Extracted Imp. Datajack | -8/Materials | Extracted Imp. Power Shielding | -8/Materials | Extracted Propulsion Shielding | -8/Materials | Extracted Disposable Heat Sink | -8/Materials | Extracted Imp. Hover Unit | -8/Materials | Extracted Imp. Light Armor Plating | -8/Materials | Extracted Hrd. Medium Armor Plating | -8/Materials | Extracted Hammer | -8/Materials | Extracted Com. Battery | -8/Materials | Extracted Shock Bomb Launcher | -8/Materials | Extracted Plasma Cannon | -7/Factory | Extracted Weapon Shielding | -7/Factory | Extracted Hvy. Laser | -7/Factory | Extracted Robot Schematics ------------------ None Fabricated ------------ Nothing Repaired ---------- Ion Engine | 43% | -10/Materials Imp. Medium Laser | 67% | -8/Materials Graphene Brace | 96% | -4/Factory Alien Tech Used ----------------- None Achievements -------------- Pyromaniac Torch Challenges ------------ None RPGLIKE | -11 -10 -10 -9 -9 -9 -8 -8 -8 -8 -8 -7 -7 -7 -5 -5 -4 -4 -4 -4 --------- Run | Yrd Mat Min Mat Min Exi Min Mat Gar Mat Gar Fac Sto Rec Fac DSF Fac Upp Upp War Levels Raised 25 | . 2 2 4 . . 1 3 1 1 1 1 1 1 1 1 4 1 . . XP Earned 41346 | 3000 4210 1953 6230 772 97 1325 3675 1774 1425 1319 2503 1595 290 1500 1813 6554 782 353 176 XP Spent 40295 | 2960 2980 2970 5850 . . 1725 4465 1485 1450 1575 1460 1560 1515 500 1300 6800 1700 . . Upgrades 95 | 11 14 8 10 . . 6 9 3 3 6 3 6 6 1 2 6 1 . . Power Slot 3 | . . . . . . . . . . . . . . . 1 2 . . . Propulsion Slot 3 | . . . . . . . . . . . . . . 1 1 1 . . . Utility Slot 5 | . 1 . 1 . . . . . 1 . . . . . . 1 1 . . Weapon Slot 4 | . 1 . . . . . 1 . . . 1 . . . . 1 . . . Core Integrity 20 | . 8 2 . . . 5 1 1 . . . . 3 . . . . . . Heat Dissipation 14 | 3 . . . . . . 3 . . . 2 6 . . . . . . . Energy Generation 3 | . 1 . . . . . 1 . . . . . 1 . . . . . . Energy Storage 6 | . . . . . . . . . . 6 . . . . . . . . . Mass Support 3 | 1 . 1 . . . . 1 . . . . . . . . . . . . Inventory Capacity 4 | 2 . . 1 . . . . . . . . . . . . 1 . . . Sight Range 2 | 2 . . . . . . . . . . . . . . . . . . . Sensor Range 1 | . . . . . . . . . . . . . 1 . . . . . . Terrain Scan Density 1 | . . . . . . . . . . . . . 1 . . . . . . Ranged Accuracy 5 | 3 . 2 . . . . . . . . . . . . . . . . . Hack Attack % 5 | . 3 . 1 . . 1 . . . . . . . . . . . . . Hack Defense % 2 | . . . 2 . . . . . . . . . . . . . . . . KI Resistance % 4 | . . 1 . . . . 1 2 . . . . . . . . . . . TH Resistance % 4 | . . 2 2 . . . . . . . . . . . . . . . . EX Resistance % 2 | . . . . . . . . . 2 . . . . . . . . . . TH Damage % 4 | . . . 3 . . . 1 . . . . . . . . . . . . Protomatter Created 7908 | . 296 267 418 78 . 24 378 486 727 709 815 1190 110 . 108 1583 211 146 362 Integrity Restored 13189 | . 728 444 528 221 . 69 806 888 563 1015 832 1703 250 . 249 2988 507 405 993 Core 11652 | . 728 444 528 147 . 65 684 691 447 839 704 1405 235 . 202 2717 418 405 993 Parts 1537 | . . . . 74 . 4 122 197 116 176 128 298 15 . 47 271 89 . . Protomatter Decayed 4056 | . 13 55 64 3 . . 10 107 623 444 369 729 20 . 36 235 128 . 1220 Game ------ Seed MagneticExperimentalLaser Manual? 0 Play Time 04:46:49 Cumulative 48.1 hours Start 2025.10.17 @ 03:56:07 End 2025.10.17 @ 21:27:09 Sessions 5 Manual Loads 0 Difficulty Rogue Special Mode Winter2019/RPGLIKE Game No. 87 Rogue 87 Adventurer 0 Explorer 0 Win Type - Total 0 Types 0/0/0/0/0/0/0/0/0/0 Lore% 41 Gallery% 45 Achievement% 59 Wizard Run 0 Options --------- Layout 0 ASCII 0 Keyboard 0 Movement Numpad Keybinds 0 Fullscreen 1 Font 18/SmallcapsGlow Map View 76x50 Zoom Use 0% Tactical HUD 1 Map Filters NONE Filters NONE Steam 1 RUN: f9893e19-f63d-4875-90c4-82e93546395f